Workbook

Sheet Overzicht maandelijks budget
B1: BEDRIJFSNAAM | E1: DATUM
B2: MAANDBUDGET
B4: BUDGETTOTALEN | C4: GESCHAT | D4: WERKELIJK | E4: VERSCHIL
B5: Inkomsten | C5: =Inkomsten[[#Totals],[GESCHAT]] -> 63300 | D5: =Inkomsten[[#Totals],[WERKELIJK]] -> 57450 | E5: =IF('Overzicht maandelijks budget'!$B5="Inkomsten",'Overzicht maandelijks budget'!$D5-'Overzicht maandelijks budget'!$C5,'Overzicht maandelijks budget'!$C5-'Overzicht maandelijks budget'!$D5) -> -5,850.00
B6: Uitgaven personeel | C6: =UitgavenPersoneel[[#Totals],[GESCHAT]] -> 18500 | D6: =UitgavenPersoneel[[#Totals],[WERKELIJK]] -> 14100 | E6: =IF('Overzicht maandelijks budget'!$B6="Inkomsten",'Overzicht maandelijks budget'!$D6-'Overzicht maandelijks budget'!$C6,'Overzicht maandelijks budget'!$C6-'Overzicht maandelijks budget'!$D6) -> 4,400.00
B7: Operationele kosten | C7: =OperationeleKosten[[#Totals],[GESCHAT]] -> 36000 | D7: =OperationeleKosten[[#Totals],[WERKELIJK]] -> 35530 | E7: =IF('Overzicht maandelijks budget'!$B7="Inkomsten",'Overzicht maandelijks budget'!$D7-'Overzicht maandelijks budget'!$C7,'Overzicht maandelijks budget'!$C7-'Overzicht maandelijks budget'!$D7) -> 470.00
B8: Saldo (inkomsten minus uitgaven) | C8: =C5-C6-C7 -> 8800 | D8: =D5-D6-D7 -> 7820 | E8: =SUBTOTAL(109,Table2[VERSCHIL]) -> -980.00
B10: WAT IS DE TOP 5 MET MIJN DUURSTE WERKELIJKE OPERATIONELE UITGAVEN?
B11: WERKELIJKE KOSTEN | C11: BEDRAG | D11: PERCENTAGE VAN UITGAVEN | E11: 15% REDUCTIE
B12: =INDEX(OperationeleKosten[],MATCH(Top5Expenses[[#This Row],[BEDRAG]],OperationeleKosten[TOP 5 BEDRAGEN],0),1) -> Onderhoud en reparaties | C12: =LARGE(OperationeleKosten[TOP 5 BEDRAGEN],1) -> 4600.000014 | D12: =Top5Expenses[[#This Row],[BEDRAG]]/$D$7 -> 12.9% | E12: =Top5Expenses[[#This Row],[BEDRAG]]*0.15 -> 690.0000021
B13: =INDEX(OperationeleKosten[],MATCH(Top5Expenses[[#This Row],[BEDRAG]],OperationeleKosten[TOP 5 BEDRAGEN],0),1) -> Benodigdheden | C13: =LARGE(OperationeleKosten[TOP 5 BEDRAGEN],2) -> 4500.00002 | D13: =Top5Expenses[[#This Row],[BEDRAG]]/$D$7 -> 12.7% | E13: =Top5Expenses[[#This Row],[BEDRAG]]*0.15 -> 675.000003
B14: =INDEX(OperationeleKosten[],MATCH(Top5Expenses[[#This Row],[BEDRAG]],OperationeleKosten[TOP 5 BEDRAGEN],0),1) -> Huur of hypotheek | C14: =LARGE(OperationeleKosten[TOP 5 BEDRAGEN],3) -> 4500.000017 | D14: =Top5Expenses[[#This Row],[BEDRAG]]/$D$7 -> 12.7% | E14: =Top5Expenses[[#This Row],[BEDRAG]]*0.15 -> 675.0000025
B15: =INDEX(OperationeleKosten[],MATCH(Top5Expenses[[#This Row],[BEDRAG]],OperationeleKosten[TOP 5 BEDRAGEN],0),1) -> Belastingen | C15: =LARGE(OperationeleKosten[TOP 5 BEDRAGEN],4) -> 3200.000021 | D15: =Top5Expenses[[#This Row],[BEDRAG]]/$D$7 -> 9.0% | E15: =Top5Expenses[[#This Row],[BEDRAG]]*0.15 -> 480.0000031
B16: =INDEX(OperationeleKosten[],MATCH(Top5Expenses[[#This Row],[BEDRAG]],OperationeleKosten[TOP 5 BEDRAGEN],0),1) -> Reclame | C16: =LARGE(OperationeleKosten[TOP 5 BEDRAGEN],5) -> 2500.000005 | D16: =Top5Expenses[[#This Row],[BEDRAG]]/$D$7 -> 7.0% | E16: =Top5Expenses[[#This Row],[BEDRAG]]*0.15 -> 375.0000007
B17: Totaal | C17: =SUBTOTAL(109,Top5Expenses[BEDRAG]) -> 19,300.00 | D17: =SUBTOTAL(109,Top5Expenses[PERCENTAGE VAN UITGAVEN]) -> 54.3% | E17: =SUBTOTAL(109,Top5Expenses[15% REDUCTIE]) -> 2,895.00

Sheet Inkomsten
B1: BEDRIJFSNAAM | E1: DATUM | F1: DATUM
B2: MAANDBUDGET
B4: INKOMSTEN | C4: GESCHAT | D4: WERKELIJK | E4: TOP 5 BEDRAGEN | F4: VERSCHIL
B5: Netto verkopen | C5: 60000 | D5: 54000 | E5: =Inkomsten[[#This Row],[WERKELIJK]]+(10^-6)*ROW(Inkomsten[[#This Row],[WERKELIJK]]) -> 54000.00001 | F5: =Inkomsten[[#This Row],[WERKELIJK]]-Inkomsten[[#This Row],[GESCHAT]] -> -6000
B6: Rentebaten | C6: 3000 | D6: 3000 | E6: =Inkomsten[[#This Row],[WERKELIJK]]+(10^-6)*ROW(Inkomsten[[#This Row],[WERKELIJK]]) -> 3000.000006 | F6: =Inkomsten[[#This Row],[WERKELIJK]]-Inkomsten[[#This Row],[GESCHAT]] -> 0
B7: Verkoop van activa (winst/verlies) | C7: 300 | D7: 450 | E7: =Inkomsten[[#This Row],[WERKELIJK]]+(10^-6)*ROW(Inkomsten[[#This Row],[WERKELIJK]]) -> 450.000007 | F7: =Inkomsten[[#This Row],[WERKELIJK]]-Inkomsten[[#This Row],[GESCHAT]] -> 150
B8: Totale inkomsten | C8: =SUBTOTAL(109,Inkomsten[GESCHAT]) -> 63300 | D8: =SUBTOTAL(109,Inkomsten[WERKELIJK]) -> 57450 | F8: =SUBTOTAL(109,Inkomsten[VERSCHIL]) -> -5850

Sheet Uitgaven personeel
B1: BEDRIJFSNAAM | E1: DATUM | F1: DATUM
B2: MAANDBUDGET
B4: UITGAVEN PERSONEEL | C4: GESCHAT | D4: WERKELIJK | E4: TOP 5 BEDRAGEN | F4: VERSCHIL
B5: Salaris | C5: 9500 | D5: 9600 | E5: =UitgavenPersoneel[[#This Row],[WERKELIJK]]+(10^-6)*ROW(UitgavenPersoneel[[#This Row],[WERKELIJK]]) -> 9600.000005 | F5: =UitgavenPersoneel[[#This Row],[GESCHAT]]-UitgavenPersoneel[[#This Row],[WERKELIJK]] -> -100
B6: Beloningen personeel | C6: 4000 | D6: 0 | E6: =UitgavenPersoneel[[#This Row],[WERKELIJK]]+(10^-6)*ROW(UitgavenPersoneel[[#This Row],[WERKELIJK]]) -> 6e-06 | F6: =UitgavenPersoneel[[#This Row],[GESCHAT]]-UitgavenPersoneel[[#This Row],[WERKELIJK]] -> 4000
B7: Commissie | C7: 5000 | D7: 4500 | E7: =UitgavenPersoneel[[#This Row],[WERKELIJK]]+(10^-6)*ROW(UitgavenPersoneel[[#This Row],[WERKELIJK]]) -> 4500.000007 | F7: =UitgavenPersoneel[[#This Row],[GESCHAT]]-UitgavenPersoneel[[#This Row],[WERKELIJK]] -> 500
B8: Totaal aan uitgaven voor personeel | C8: =SUBTOTAL(109,UitgavenPersoneel[GESCHAT]) -> 18500 | D8: =SUBTOTAL(109,UitgavenPersoneel[WERKELIJK]) -> 14100 | F8: =SUBTOTAL(109,UitgavenPersoneel[VERSCHIL]) -> 4400

Sheet Operationele kosten
B1: BEDRIJFSNAAM | E1: DATUM | F1: DATUM
B2: MAANDBUDGET
B4: OPERATIONELE KOSTEN | C4: GESCHAT | D4: WERKELIJK | E4: TOP 5 BEDRAGEN | F4: VERSCHIL
B5: Reclame | C5: 3000 | D5: 2500 | E5: =OperationeleKosten[[#This Row],[WERKELIJK]]+(10^-6)*ROW(OperationeleKosten[[#This Row],[WERKELIJK]]) -> 2500.000005 | F5: =OperationeleKosten[[#This Row],[GESCHAT]]-OperationeleKosten[[#This Row],[WERKELIJK]] -> 500
B6: Oninbare schulden | C6: 2000 | D6: 2000 | E6: =OperationeleKosten[[#This Row],[WERKELIJK]]+(10^-6)*ROW(OperationeleKosten[[#This Row],[WERKELIJK]]) -> 2000.000006 | F6: =OperationeleKosten[[#This Row],[GESCHAT]]-OperationeleKosten[[#This Row],[WERKELIJK]] -> 0
B7: Contantkortingen | C7: 1500 | D7: 2175 | E7: =OperationeleKosten[[#This Row],[WERKELIJK]]+(10^-6)*ROW(OperationeleKosten[[#This Row],[WERKELIJK]]) -> 2175.000007 | F7: =OperationeleKosten[[#This Row],[GESCHAT]]-OperationeleKosten[[#This Row],[WERKELIJK]] -> -675
B8: Afleveringskosten | C8: 2000 | D8: 1500 | E8: =OperationeleKosten[[#This Row],[WERKELIJK]]+(10^-6)*ROW(OperationeleKosten[[#This Row],[WERKELIJK]]) -> 1500.000008 | F8: =OperationeleKosten[[#This Row],[GESCHAT]]-OperationeleKosten[[#This Row],[WERKELIJK]] -> 500
B9: Afschrijving | C9: 1000 | D9: 1000 | E9: =OperationeleKosten[[#This Row],[WERKELIJK]]+(10^-6)*ROW(OperationeleKosten[[#This Row],[WERKELIJK]]) -> 1000.000009 | F9: =OperationeleKosten[[#This Row],[GESCHAT]]-OperationeleKosten[[#This Row],[WERKELIJK]] -> 0
B10: Contributies en abonnementen | C10: 500 | D10: 525 | E10: =OperationeleKosten[[#This Row],[WERKELIJK]]+(10^-6)*ROW(OperationeleKosten[[#This Row],[WERKELIJK]]) -> 525.00001 | F10: =OperationeleKosten[[#This Row],[GESCHAT]]-OperationeleKosten[[#This Row],[WERKELIJK]] -> -25
B11: Verzekering | C11: 1300 | D11: 1275 | E11: =OperationeleKosten[[#This Row],[WERKELIJK]]+(10^-6)*ROW(OperationeleKosten[[#This Row],[WERKELIJK]]) -> 1275.000011 | F11: =OperationeleKosten[[#This Row],[GESCHAT]]-OperationeleKosten[[#This Row],[WERKELIJK]] -> 25
B12: Rente | C12: 2000 | D12: 2200 | E12: =OperationeleKosten[[#This Row],[WERKELIJK]]+(10^-6)*ROW(OperationeleKosten[[#This Row],[WERKELIJK]]) -> 2200.000012 | F12: =OperationeleKosten[[#This Row],[GESCHAT]]-OperationeleKosten[[#This Row],[WERKELIJK]] -> -200
B13: Juridisch en controles | C13: 1000 | D13: 800 | E13: =OperationeleKosten[[#This Row],[WERKELIJK]]+(10^-6)*ROW(OperationeleKosten[[#This Row],[WERKELIJK]]) -> 800.000013 | F13: =OperationeleKosten[[#This Row],[GESCHAT]]-OperationeleKosten[[#This Row],[WERKELIJK]] -> 200
B14: Onderhoud en reparaties | C14: 4500 | D14: 4600 | E14: =OperationeleKosten[[#This Row],[WERKELIJK]]+(10^-6)*ROW(OperationeleKosten[[#This Row],[WERKELIJK]]) -> 4600.000014 | F14: =OperationeleKosten[[#This Row],[GESCHAT]]-OperationeleKosten[[#This Row],[WERKELIJK]] -> -100
B15: Kantoorbenodigdheden | C15: 800 | D15: 750 | E15: =OperationeleKosten[[#This Row],[WERKELIJK]]+(10^-6)*ROW(OperationeleKosten[[#This Row],[WERKELIJK]]) -> 750.000015 | F15: =OperationeleKosten[[#This Row],[GESCHAT]]-OperationeleKosten[[#This Row],[WERKELIJK]] -> 50
B16: Portokosten | C16: 400 | D16: 350 | E16: =OperationeleKosten[[#This Row],[WERKELIJK]]+(10^-6)*ROW(OperationeleKosten[[#This Row],[WERKELIJK]]) -> 350.000016 | F16: =OperationeleKosten[[#This Row],[GESCHAT]]-OperationeleKosten[[#This Row],[WERKELIJK]] -> 50
B17: Huur of hypotheek | C17: 4100 | D17: 4500 | E17: =OperationeleKosten[[#This Row],[WERKELIJK]]+(10^-6)*ROW(OperationeleKosten[[#This Row],[WERKELIJK]]) -> 4500.000017 | F17: =OperationeleKosten[[#This Row],[GESCHAT]]-OperationeleKosten[[#This Row],[WERKELIJK]] -> -400
B18: Verkoopuitgaven | C18: 350 | D18: 400 | E18: =OperationeleKosten[[#This Row],[WERKELIJK]]+(10^-6)*ROW(OperationeleKosten[[#This Row],[WERKELIJK]]) -> 400.000018 | F18: =OperationeleKosten[[#This Row],[GESCHAT]]-OperationeleKosten[[#This Row],[WERKELIJK]] -> -50
B19: Verzending en opslag | C19: 900 | D19: 840 | E19: =OperationeleKosten[[#This Row],[WERKELIJK]]+(10^-6)*ROW(OperationeleKosten[[#This Row],[WERKELIJK]]) -> 840.000019 | F19: =OperationeleKosten[[#This Row],[GESCHAT]]-OperationeleKosten[[#This Row],[WERKELIJK]] -> 60
B20: Benodigdheden | C20: 5000 | D20: 4500 | E20: =OperationeleKosten[[#This Row],[WERKELIJK]]+(10^-6)*ROW(OperationeleKosten[[#This Row],[WERKELIJK]]) -> 4500.00002 | F20: =OperationeleKosten[[#This Row],[GESCHAT]]-OperationeleKosten[[#This Row],[WERKELIJK]] -> 500
B21: Belastingen | C21: 3000 | D21: 3200 | E21: =OperationeleKosten[[#This Row],[WERKELIJK]]+(10^-6)*ROW(OperationeleKosten[[#This Row],[WERKELIJK]]) -> 3200.000021 | F21: =OperationeleKosten[[#This Row],[GESCHAT]]-OperationeleKosten[[#This Row],[WERKELIJK]] -> -200
B22: Telefoon | C22: 250 | D22: 280 | E22: =OperationeleKosten[[#This Row],[WERKELIJK]]+(10^-6)*ROW(OperationeleKosten[[#This Row],[WERKELIJK]]) -> 280.000022 | F22: =OperationeleKosten[[#This Row],[GESCHAT]]-OperationeleKosten[[#This Row],[WERKELIJK]] -> -30
B23: Water, gas, elektriciteit | C23: 1400 | D23: 1385 | E23: =OperationeleKosten[[#This Row],[WERKELIJK]]+(10^-6)*ROW(OperationeleKosten[[#This Row],[WERKELIJK]]) -> 1385.000023 | F23: =OperationeleKosten[[#This Row],[GESCHAT]]-OperationeleKosten[[#This Row],[WERKELIJK]] -> 15
B24: Overig | C24: 1000 | D24: 750 | E24: =OperationeleKosten[[#This Row],[WERKELIJK]]+(10^-6)*ROW(OperationeleKosten[[#This Row],[WERKELIJK]]) -> 750.000024 | F24: =OperationeleKosten[[#This Row],[GESCHAT]]-OperationeleKosten[[#This Row],[WERKELIJK]] -> 250
B25: Totale operationele uitgaven | C25: =SUBTOTAL(109,OperationeleKosten[GESCHAT]) -> 36000 | D25: =SUBTOTAL(109,OperationeleKosten[WERKELIJK]) -> 35530 | F25: =SUBTOTAL(109,OperationeleKosten[VERSCHIL]) -> 470
